bitfinex-derivatives/quotes_SOLF0:USTF0_20260203
["timestamp","ask_amount","ask_price","bid_price","bid_amount"]
[1770148199752,73.54699284,98.758,98.681,69.91882008]
[1770148200051,73.54699284,98.758,98.7,9.1299]
[1770148200451,73.54699284,98.758,98.68,142.05]
[1770148200452,73.54699284,98.779,98.692,69.91882008]
[1770148200646,73.54699284,98.777,98.709,9.129]
[1770148200847,73.54699284,98.777,98.694,142.029]
[1770148200848,73.54699284,98.777,98.715,69.91882008]
[1770148201450,73.54699284,98.777,98.727,9.1274]
[1770148201852,73.54699284,98.798,98.724,69.91882008]
[1770148202054,73.54699284,98.776,98.701,69.91882008]
[1770148202251,141.9086,98.779,98.701,69.91882008]
[1770148202252,73.54699284,98.769,98.701,69.91882008]
[1770148203059,73.54699284,98.769,98.682,284.094]
[1770148203060,73.54699284,98.755,98.681,69.91882008]
[1770148203262,73.54699284,98.749,98.681,69.91882008]
[1770148203663,8.53404233,98.75,98.668,9.1328]
[1770148203664,73.54699284,98.735,98.668,9.1328]
[1770148203864,141.9559,98.746,98.661,69.91882008]
[1770148203865,73.54699284,98.729,98.661,69.91882008]
[1770148204658,9.1283,98.718,98.663,9.1333]
[1770148205266,73.54699284,98.729,98.661,69.91882008]
[1770148206066,73.54699284,98.749,98.669,69.91882008]
[1770148206854,73.54699284,98.749,98.697,9.1302]
[1770148207259,82.67239284,98.749,98.697,9.1302]
[1770148207460,82.67239284,98.749,98.687,9.1311]
[1770148208063,9.1262,98.741,98.687,9.1311]
[1770148208259,73.54699284,98.749,98.687,79.04992008]
[1770148208468,73.54699284,98.768,98.7,9.1299]
[1770148209670,9.1244,98.759,98.7,9.1299]
[1770148210164,404.46,98.784,98.679,142.0507]
[1770148210165,9.1224,98.782,98.707,69.91882008]
[1770148210571,9.1224,98.782,98.709,69.91882008]
[1770148211370,73.54699284,98.788,98.735,9.1266]
[1770148212564,9.1219,98.787,98.724,9.1276]
[1770148212766,82.66889284,98.787,98.724,9.1276]
[1770148213268,82.66889284,98.787,98.713,9.1287]
[1770148213269,73.54699284,98.776,98.713,9.1287]
[1770148214665,73.54699284,98.776,98.722,9.1278]
[1770148215067,73.54699284,98.776,98.732,9.1269]
[1770148215367,73.54699284,98.818,98.74,69.91882008]
[1770148215768,82.66739284,98.803,98.74,69.91882008]
[1770148216371,82.66739284,98.803,98.741,9.126]
[1770148216868,82.66739284,98.803,98.69,8.53404233]
[1770148216869,9.122,98.786,98.721,69.91882008]
[1770148217069,9.122,98.786,98.723,9.1277]
[1770148217261,9.122,98.786,98.721,69.91882008]
[1770148217262,9.123,98.775,98.721,69.91882008]
[1770148217471,73.54699284,98.774,98.701,69.91882008]
[1770148217963,9.1245,98.759,98.701,69.91882008]
[1770148218164,73.54699284,98.759,98.676,69.91882008]
[1770148218569,9.1247,98.757,98.695,9.1303]
[1770148219072,73.54699284,98.759,98.689,69.91882008]
[1770148219473,73.54699284,98.759,98.692,142.0314]
[1770148219669,73.54699284,98.759,98.693,142.031]
[1770148220272,73.54699284,98.777,98.713,9.1287]
[1770148220464,73.54699284,98.777,98.693,142.031]
[1770148220465,73.54699284,98.777,98.702,69.40946253]
[1770148220662,73.54699284,98.777,98.704,69.40946253]
[1770148221170,73.67236821,98.775,98.712,9.1288]
[1770148221973,9.1235,98.769,98.712,9.1288]
[1770148222571,73.67236821,98.821,98.741,69.40946253]
[1770148222875,73.67236821,98.817,98.741,69.40946253]
[1770148223069,73.67236821,98.815,98.741,69.40946253]
[1770148223267,73.67236821,98.798,98.721,69.40946253]
[1770148223874,73.67236821,98.779,98.7,69.40946253]
[1770148224070,73.67236821,98.769,98.684,69.40946253]
[1770148224277,73.67236821,98.767,98.69,69.40946253]
[1770148224991,82.79686821,98.758,98.69,69.40946253]
[1770148225187,141.9402,98.757,98.665,69.40946253]
[1770148225490,73.67236821,98.756,98.665,69.40946253]
[1770148226683,73.67236821,98.745,98.673,9.1323]
[1770148226885,73.67236821,98.739,98.665,69.40946253]
[1770148227188,9.1252,98.751,98.683,69.40946253]
[1770148227487,73.67236821,98.771,98.694,69.40946253]
[1770148227790,73.67236821,98.771,98.702,69.40946253]
[1770148228491,73.67236821,98.771,98.712,9.1287]
[1770148228686,546.1753,98.802,98.693,142.0306]
[1770148228687,73.67236821,98.82,98.727,69.40946253]
[1770148228888,73.67236821,98.82,98.743,141.9593]
[1770148229786,73.67236821,98.844,98.761,69.40946253]
[1770148230093,73.67236821,98.856,98.777,69.40946253]
[1770148230285,73.67236821,98.875,98.797,69.40946253]
[1770148230587,73.67236821,98.866,98.774,69.40946253]
[1770148230781,82.20641054,98.85,98.774,69.40946253]
[1770148230981,73.67236821,98.829,98.743,69.40946253]
[1770148231390,73.67236821,98.829,98.75,69.40946253]
[1770148231594,73.67236821,98.829,98.744,141.9571]
[1770148231595,73.67236821,98.829,98.755,141.9417]
[1770148231890,73.67236821,98.829,98.761,9.1242]
[1770148233595,73.67236821,98.829,98.764,9.1239]
[1770148234695,73.67236821,98.827,98.735,211.37916253]
[1770148234896,73.67236821,98.827,98.743,211.36836253]
[1770148235097,73.67236821,98.827,98.743,69.40946253]
[1770148235286,73.67236821,98.824,98.743,69.40946253]
[1770148235487,73.67236821,98.824,98.745,9.1257]
[1770148235898,73.67236821,98.819,98.745,9.1257]
[1770148236402,73.67236821,98.911,98.814,69.40946253]
[1770148236704,141.6497,98.959,98.86,141.791]
[1770148236705,8.53404233,98.95,98.86,141.791]
[1770148236899,141.6143,98.984,98.879,141.7634]
[1770148236900,8.53404233,98.97,98.879,141.7634]
[1770148237200,8.53404233,98.97,98.885,141.7556]
[1770148237400,141.6134,98.985,98.886,141.7536]
[1770148237699,8.53404233,98.99,98.893,141.7431]
[1770148237994,141.6058,98.99,98.9,9.1114]
[1770148238197,150.15434233,98.98,98.862,69.40946253]
[1770148238399,150.15434233,98.98,98.87,141.7768]
[1770148238400,8.53404233,98.96,98.87,141.7768]
[1770148238595,8.53404233,98.96,98.868,69.40946253]
[1770148238596,73.67236821,98.95,98.868,69.40946253]
[1770148238802,73.67236821,98.95,98.878,141.7652]
[1770148239001,73.67236821,98.95,98.882,141.7592]
[1770148239498,73.67236821,98.95,98.872,69.40946253]
[1770148239700,82.20641054,98.95,98.858,69.40946253]
[1770148240292,73.67236821,98.929,98.835,69.40946253]
[1770148240602,73.67236821,98.929,98.84,211.22926253]
[1770148240800,8.53404233,98.93,98.84,211.22926253]
[1770148240801,73.67236821,98.918,98.84,69.40946253]
[1770148241097,82.20641054,98.91,98.84,69.40946253]
[1770148241299,73.67236821,98.889,98.807,69.40946253]
[1770148241499,73.67236821,98.889,98.808,141.8653]
[1770148241697,73.67236821,98.889,98.808,211.27476253]
[1770148241898,73.67236821,98.889,98.811,141.8613]
[1770148242391,73.67236821,98.889,98.809,9.1198]
[1770148242898,73.67236821,98.889,98.809,150.9832]
[1770148243698,73.67236821,98.889,98.809,9.1198]
[1770148244099,82.78506821,98.887,98.808,69.40946253]
[1770148244301,82.20641054,98.88,98.794,9.1212]
[1770148244702,82.78576821,98.879,98.794,9.1212]
[1770148244898,73.67236821,98.879,98.811,141.8613]
[1770148245595,141.6856,98.934,98.811,141.8613]
[1770148245596,73.67236821,98.905,98.826,9.1182]
[1770148245997,73.67236821,98.905,98.835,9.1174]
[1770148246798,82.20641054,98.89,98.821,69.40946253]
[1770148246998,73.67236821,98.89,98.821,69.40946253]
[1770148247593,82.78496821,98.888,98.821,69.40946253]
[1770148247799,73.67236821,98.883,98.799,69.40946253]
[1770148248096,73.67236821,98.878,98.799,69.40946253]
[1770148248298,9.1146,98.866,98.799,69.40946253]
[1770148248491,9.1146,98.866,98.765,141.9269]
[1770148248492,73.67236821,98.865,98.777,69.40946253]
[1770148248692,73.67236821,98.865,98.779,69.40946253]
[1770148248895,9.1139,98.874,98.798,69.40946253]
[1770148249407,9.1139,98.874,98.81,9.1197]
[1770148249600,73.67236821,98.886,98.812,211.26846253]
[1770148250399,73.67236821,98.886,98.826,9.1182]
[1770148250901,69.06908395,98.973,98.894,216.64368708]
[1770148251102,69.06908395,98.973,98.897,141.7374]
[1770148251301,69.06908395,98.973,98.9,141.733]
[1770148251498,69.06908395,98.973,98.907,9.1107]
[1770148252408,69.06908395,98.973,98.895,216.64268708]
[1770148252600,78.17388395,98.973,98.895,74.90218708]
[1770148252801,69.06908395,98.972,98.895,74.90218708]
[1770148253710,69.06908395,98.972,98.899,9.1115]
[1770148253901,69.06908395,99.001,98.909,216.62318708]
[1770148254104,69.06908395,99.001,98.91,74.90218708]
[1770148254309,68.72665365,98.989,98.91,74.90218708]
[1770148255112,68.72665365,98.98,98.91,74.90218708]
[1770148255415,68.72665365,98.98,98.885,69.43006455]
[1770148255612,77.83115365,98.976,98.89,69.43006455]
[1770148256012,68.72665365,98.97,98.89,69.43006455]
[1770148256414,77.83195365,98.967,98.89,78.54236455]
[1770148256716,68.72665365,98.989,98.903,69.43006455]
[1770148257307,77.83035365,98.984,98.908,9.1107]
[1770148257508,68.72665365,98.975,98.903,69.43006455]
[1770148257716,9.1053,98.967,98.894,9.112]
[1770148257918,68.72665365,98.975,98.895,69.43006455]
[1770148258815,68.72665365,98.973,98.895,69.43006455]
[1770148259811,68.72665365,98.97,98.908,9.1107]
[1770148260119,68.72665365,98.97,98.895,69.43006455]
[1770148260319,68.72665365,98.958,98.884,9.1128]
[1770148260516,68.72665365,98.958,98.88,69.43006455]
[1770148260815,68.72665365,98.981,98.889,69.43006455]
[1770148261015,68.72665365,98.981,98.912,69.43006455]
[1770148261411,68.72665365,99.0,98.925,69.43006455]
[1770148262818,68.72665365,99.0,98.927,9.1089]
[1770148262819,9.1032,98.99,98.927,9.1089]
[1770148263016,68.72665365,99.0,98.927,9.1089]
[1770148263213,68.72665365,99.0,98.932,69.43006455]
[1770148264315,141.5845,99.005,98.906,69.43006455]
[1770148264519,68.72665365,98.982,98.906,69.43006455]
[1770148264717,68.72665365,98.988,98.91,69.43006455]
[1770148264915,141.6286,98.974,98.91,69.43006455]
[1770148265222,68.72665365,98.969,98.889,472.97006455]
[1770148265415,9.1052,98.968,98.897,9.1117]
[1770148265615,9.1052,98.968,98.89,69.43006455]
[1770148266215,68.72665365,98.969,98.901,69.43006455]
[1770148266522,68.72665365,98.969,98.885,141.7543]
[1770148266523,68.72665365,98.958,98.879,69.43006455]
[1770148267224,9.1076,98.942,98.879,69.43006455]
[1770148267826,9.1067,98.952,98.891,78.54236455]
[1770148268620,68.72665365,98.958,98.9,9.1113]
[1770148268818,403.5,98.994,98.9,9.1113]
[1770148268819,68.72665365,98.979,98.901,69.43006455]
[1770148269325,68.72665365,98.979,98.917,9.1098]
[1770148269526,68.72665365,98.979,98.901,69.43006455]
[1770148270722,9.1054,98.966,98.908,9.1107]
[1770148271825,9.1067,98.952,98.901,69.43006455]
[1770148272030,141.6299,98.973,98.901,69.43006455]
[1770148272227,68.72665365,98.979,98.901,69.43006455]
[1770148273128,9.1058,98.962,98.911,9.1104]
[1770148274630,9.1058,98.962,98.902,9.1112]
[1770148275322,9.1058,98.962,98.911,9.1103]
[1770148277734,9.1047,98.974,98.919,9.1096]
[1770148278235,68.72665365,98.979,98.928,9.1088]
[1770148279034,9.1046,98.975,98.919,69.43006455]
[1770148280833,9.1046,98.975,98.921,9.1094]
[1770148282232,73.18503363,98.957,98.887,9.04987784]
[1770148282440,73.18503363,98.953,98.877,74.51968316]
[1770148282728,73.18503363,98.928,98.858,74.51968316]
[1770148282934,73.18503363,98.913,98.836,74.51968316]
[1770148283136,9.1112,98.903,98.839,9.117]
[1770148283539,141.7233,98.908,98.836,74.51968316]
[1770148283727,73.18503363,98.907,98.836,74.51968316]
[1770148284432,9.1122,98.892,98.836,74.51968316]
[1770148285428,73.18503363,98.929,98.84,74.51968316]
[1770148285627,73.18503363,98.927,98.84,74.51968316]
[1770148286032,73.18503363,98.927,98.845,9.1165]
[1770148286033,9.1104,98.911,98.845,9.1165]
[1770148286733,73.18503363,98.903,98.84,74.51968316]
[1770148287041,73.18503363,98.895,98.82,9.1188]
[1770148287231,73.18503363,98.895,98.82,83.63848316]
[1770148287431,9.1133,98.88,98.82,74.51968316]
[1770148287828,82.29833363,98.88,98.809,83.63948316]
[1770148288735,9.1145,98.867,98.809,74.51968316]
[1770148289529,82.29953363,98.867,98.809,74.51968316]
[1770148289727,9.1122,98.892,98.809,74.51968316]
[1770148289931,9.1122,98.892,98.794,141.8856]
[1770148289932,73.18503363,98.892,98.815,74.51968316]
[1770148290329,141.7419,98.895,98.815,74.51968316]
[1770148290330,73.18503363,98.882,98.815,74.51968316]
[1770148290530,73.18503363,98.876,98.815,74.51968316]
[1770148290842,141.7908,98.861,98.795,83.569561]
[1770148291034,73.18503363,98.86,98.784,9.04987784]
[1770148291231,73.18503363,98.86,98.775,74.51968316]
[1770148291435,73.18503363,98.837,98.756,74.51968316]
[1770148291636,73.18503363,98.809,98.738,74.51968316]
[1770148291841,73.18503363,98.798,98.722,74.51968316]
[1770148292442,141.8673,98.808,98.722,74.51968316]
[1770148292443,9.1217,98.789,98.722,74.51968316]
[1770148292942,73.18503363,98.796,98.723,141.9881]
[1770148293241,73.18503363,98.796,98.731,9.1269]
[1770148293537,73.18503363,98.796,98.7,142.02]
[1770148293538,73.18503363,98.886,98.799,74.51968316]
[1770148293737,73.18503363,98.886,98.825,9.1183]
[1770148294135,73.18503363,98.886,98.821,141.847]
[1770148294338,73.18503363,98.886,98.814,74.51968316]
[1770148294539,141.7762,98.871,98.788,74.51968316]
[1770148294736,73.18503363,98.87,98.788,74.51968316]
[1770148294938,73.18503363,98.866,98.789,9.1216]
[1770148295845,73.18503363,98.862,98.789,9.1216]
[1770148296342,82.30033363,98.859,98.788,74.51968316]
[1770148297840,9.1163,98.847,98.763,74.51968316]
[1770148298144,73.18503363,98.846,98.763,74.51968316]
[1770148298344,73.18503363,98.846,98.768,9.1235]
[1770148298842,73.18503363,98.839,98.763,74.51968316]
[1770148299236,8.49451087,98.84,98.763,74.51968316]
[1770148299237,73.18503363,98.829,98.763,74.51968316]
[1770148299436,141.8359,98.83,98.72,8.49451087]
[1770148299437,73.18503363,98.825,98.742,74.51968316]
[1770148300241,73.18503363,98.825,98.731,141.9762]
[1770148300242,73.18503363,98.825,98.753,83.64458316]
[1770148300438,73.18503363,98.825,98.76,74.51968316]
[1770148300645,141.7765,98.871,98.759,141.9357]
[1770148300646,73.18503363,98.856,98.765,74.51968316]
[1770148300844,73.18503363,98.856,98.768,74.51968316]
[1770148301348,73.18503363,98.856,98.785,74.51968316]
[1770148301745,73.18503363,98.854,98.785,74.51968316]
[1770148302144,9.1158,98.853,98.789,9.1216]
[1770148302940,73.18503363,98.875,98.803,74.51968316]
[1770148303841,9.114,98.873,98.806,74.51968316]
[1770148304745,9.114,98.873,98.808,9.1198]
[1770148305146,9.114,98.873,98.808,83.63948316]
[1770148305346,73.18503363,98.875,98.818,9.1189]
[1770148306043,73.18503363,98.897,98.833,74.51968316]
[1770148307244,73.18503363,98.897,98.825,141.8405]
[1770148307245,73.18503363,98.949,98.847,74.51968316]
[1770148307449,73.18503363,98.947,98.857,74.51968316]
[1770148308648,9.1085,98.933,98.873,9.1139]
[1770148308855,73.18503363,98.931,98.857,74.51968316]
[1770148309353,73.18503363,98.913,98.834,74.51968316]
[1770148309752,8.49451087,98.92,98.808,141.866]
[1770148309753,73.18503363,98.895,98.825,9.1183]
[1770148310350,73.18503363,98.895,98.828,74.51968316]
[1770148311752,73.18503363,98.895,98.836,9.1173]
[1770148313858,8.49451087,98.93,98.818,141.8508]
[1770148313859,70.15920676,98.92,98.847,72.20127277]
[1770148314558,78.11266447,98.916,98.857,9.1153]
[1770148314759,78.11266447,98.916,98.847,72.20127277]
[1770148315153,9.111,98.905,98.827,74.59022695]
[1770148315557,69.00266447,98.904,98.827,74.59022695]
[1770148315849,78.11396447,98.902,98.833,9.1175]
[1770148318767,141.7099,98.917,98.817,9.1191]
[1770148318768,69.00266447,98.892,98.817,9.1191]
[1770148319159,69.00266447,98.892,98.82,141.8483]
[1770148319366,69.00266447,98.892,98.846,9.1163]
[1770148320363,346.5,98.926,98.824,141.842]
[1770148320364,69.00266447,98.935,98.867,9.1145]
[1770148320563,9.1117,98.898,98.819,74.59022695]
[1770148320764,9.1117,98.898,98.838,9.1171]
[1770148321070,69.00266447,98.901,98.819,74.59022695]
[1770148321370,69.00266447,98.889,98.819,74.59022695]
[1770148321564,141.7488,98.89,98.798,74.59022695]
[1770148321565,69.00266447,98.875,98.798,74.59022695]
[1770148321760,69.00266447,98.865,98.784,9.1221]
[1770148321965,69.00266447,98.859,98.784,9.1221]
[1770148322268,69.00266447,98.859,98.79,74.59022695]
[1770148322469,69.00266447,98.88,98.797,74.59022695]
[1770148322864,69.00266447,98.875,98.805,216.46042695]
[1770148323169,69.00266447,98.875,98.806,74.59022695]
[1770148323364,69.00266447,98.875,98.785,74.59022695]
[1770148323568,69.00266447,98.871,98.785,74.59022695]
[1770148323772,69.00266447,98.871,98.797,9.1208]
[1770148324170,69.00266447,98.871,98.777,141.9092]
[1770148324171,78.11686447,98.871,98.806,9.12]
[1770148324366,8.5181582,98.88,98.806,74.59022695]
[1770148324572,69.00266447,98.892,98.806,74.59022695]
[1770148324963,141.7773,98.87,98.785,74.59022695]
[1770148325166,150.2812582,98.88,98.785,74.59022695]
[1770148325167,69.00266447,98.867,98.785,74.59022695]
[1770148325372,69.00266447,98.854,98.771,74.59022695]
[1770148325573,69.00266447,98.854,98.786,9.1219]
[1770148326270,69.00266447,98.854,98.795,9.1211]
[1770148326465,69.00266447,98.854,98.775,141.9123]
[1770148326466,69.00266447,98.878,98.786,141.8966]
[1770148326672,69.00266447,98.878,98.802,74.59022695]
[1770148327174,69.00266447,98.878,98.819,9.1189]
[1770148327373,69.00266447,98.878,98.802,74.59022695]
[1770148327671,69.00266447,98.863,98.782,403.8]
[1770148327868,69.00266447,98.863,98.783,74.59022695]
[1770148328174,78.11766447,98.862,98.796,9.121]
[1770148328369,69.00266447,98.86,98.783,74.59022695]
[1770148328671,9.1168,98.842,98.784,9.1221]
[1770148328871,69.00266447,98.849,98.762,74.59022695]
[1770148329268,9.1167,98.843,98.774,83.71322695]
[1770148329568,69.00266447,98.849,98.774,74.59022695]
[1770148330166,69.00266447,98.849,98.785,9.1219]
[1770148330973,69.00266447,98.849,98.769,141.9214]
[1770148330974,69.00266447,98.849,98.781,141.9042]
[1770148331365,69.00266447,98.849,98.779,74.59022695]
[1770148331564,78.11896447,98.848,98.792,9.1214]
[1770148331765,69.00266447,98.848,98.792,9.1214]
[1770148331974,69.00266447,98.848,98.782,74.59022695]
[1770148332269,69.00266447,98.898,98.813,74.59022695]
[1770148332876,69.00266447,98.898,98.819,74.59022695]
[1770148333566,9.1118,98.896,98.819,74.59022695]
[1770148334273,9.1118,98.896,98.814,141.8567]
[1770148334274,69.00266447,98.921,98.837,74.59022695]
[1770148334571,69.00266447,98.921,98.847,74.59022695]
[1770148335277,78.11226447,98.921,98.855,9.1155]
[1770148335480,78.11226447,98.921,98.84,141.8201]
[1770148335481,69.00266447,98.921,98.852,74.59022695]
[1770148336680,9.1097,98.919,98.854,9.1156]
[1770148337377,9.1097,98.919,98.865,9.1146]
[1770148337579,69.00266447,98.921,98.852,74.59022695]
[1770148337984,69.00266447,98.919,98.835,403.84]
[1770148338283,69.00266447,98.914,98.835,74.59022695]
[1770148338482,69.00266447,98.914,98.814,141.8567]
[1770148338483,69.00266447,98.892,98.829,9.1179]
[1770148339582,69.00266447,98.892,98.838,9.1171]
[1770148340976,8.5181582,98.92,98.819,141.8498]
[1770148340977,69.70396897,98.914,98.839,141.8208]
[1770148341177,69.70396897,98.914,98.826,141.8394]
[1770148341178,69.70396897,98.935,98.854,68.51941391]
[1770148341385,69.70396897,98.921,98.83,68.51941391]
[1770148341777,69.70396897,98.9,98.83,68.51941391]
[1770148342283,9.113,98.884,98.809,68.51941391]
[1770148342591,69.70396897,98.887,98.781,12.11873493]
[1770148342887,8.5181582,98.86,98.784,77.64141391]
[1770148343282,69.70396897,98.847,98.784,68.51941391]
[1770148343683,78.22212717,98.84,98.761,68.51941391]
[1770148344186,78.22212717,98.84,98.727,12.11873493]
[1770148344187,69.70396897,98.815,98.734,68.51941391]
[1770148344388,69.70396897,98.808,98.734,68.51941391]
[1770148345183,69.70396897,98.793,98.71,68.51941391]
[1770148345385,69.70396897,98.779,98.686,68.51941391]
[1770148345589,9.1215,98.791,98.716,68.51941391]
[1770148345786,69.70396897,98.789,98.716,68.51941391]
[1770148346289,9.1226,98.779,98.716,68.51941391]
[1770148346690,78.82656897,98.779,98.716,68.51941391]
[1770148346981,69.70396897,98.77,98.695,68.51941391]
[1770148347183,69.70396897,98.75,98.673,68.51941391]
[1770148347383,211.65926897,98.746,98.673,68.51941391]
[1770148347587,78.22212717,98.74,98.673,68.51941391]
[1770148347785,69.70396897,98.737,98.657,9.1339]
[1770148348082,69.70396897,98.737,98.652,68.51941391]
[1770148348391,8.5181582,98.74,98.652,68.51941391]
[1770148348392,9.1276,98.725,98.652,68.51941391]
[1770148348886,9.1276,98.725,98.654,9.1341]
[1770148349086,78.83156897,98.725,98.652,68.51941391]
[1770148349785,69.70396897,98.725,98.653,9.1342]
[1770148350486,69.70396897,98.72,98.652,68.51941391]
[1770148350685,69.70396897,98.72,98.601,142.1636]
[1770148350686,69.70396897,98.716,98.627,68.51941391]
[1770148350887,9.1289,98.711,98.627,68.51941391]
[1770148351086,78.83286897,98.711,98.629,68.51941391]
[1770148351483,69.70396897,98.698,98.629,68.51941391]
[1770148352283,69.70396897,98.722,98.629,68.51941391]
[1770148352490,69.70396897,98.713,98.629,68.51941391]
[1770148352691,69.70396897,98.705,98.629,68.51941391]
[1770148353194,69.70396897,98.694,98.612,68.51941391]
[1770148353493,78.83446897,98.694,98.614,9.1378]
[1770148354285,142.0002,98.715,98.625,68.51941391]
[1770148354487,69.70396897,98.701,98.625,68.51941391]
[1770148354689,69.70396897,98.685,98.601,68.51941391]
[1770148354889,142.0398,98.688,98.601,68.51941391]
[1770148354890,69.70396897,98.678,98.601,68.51941391]
[1770148355289,78.83586897,98.678,98.601,68.51941391]
[1770148355487,69.70396897,98.678,98.609,68.51941391]
[1770148355792,69.70396897,98.678,98.614,68.51941391]
[1770148356690,69.70396897,98.678,98.6,142.1639]
[1770148356894,69.70396897,98.678,98.596,68.51941391]
[1770148357494,69.70396897,98.678,98.604,68.51941391]
[1770148358092,69.70396897,98.678,98.611,68.51941391]
[1770148358296,69.70396897,98.701,98.621,68.51941391]
[1770148358686,69.70396897,98.701,98.631,68.51941391]
[1770148359998,69.70396897,98.699,98.611,68.51941391]
[1770148360194,142.0375,98.689,98.611,68.51941391]
[1770148360496,69.70396897,98.683,98.611,68.51941391]
[1770148361202,69.70396897,98.703,98.62,68.51941391]
[1770148361694,69.70396897,98.685,98.62,68.51941391]
[1770148362092,69.70396897,98.685,98.633,9.1361]
[1770148362289,69.70396897,98.719,98.633,9.1361]
[1770148362495,69.70396897,98.717,98.633,9.1361]
[1770148363299,78.83396897,98.699,98.622,9.1371]
[1770148363595,69.70396897,98.699,98.622,77.65651391]
[1770148363799,69.70396897,98.686,98.622,9.1371]
[1770148364189,69.70396897,98.715,98.634,9.1359]
[1770148365201,9.1302,98.697,98.63,9.1363]
[1770148366100,9.1302,98.697,98.639,9.1355]
[1770148366795,78.83416897,98.697,98.639,9.1355]
[1770148367000,78.83416897,98.697,98.629,68.51941391]
[1770148367601,78.83416897,98.697,98.633,9.136]
[1770148368200,69.70396897,98.697,98.633,142.1165]
[1770148368401,69.70396897,98.697,98.634,68.51941391]
[1770148368602,69.70396897,98.697,98.636,68.51941391]
[1770148369201,9.1283,98.717,98.653,9.1342]
[1770148369400,9.1283,98.717,98.636,68.51941391]
[1770148369401,69.70396897,98.717,98.636,68.51941391]
[1770148369802,78.83226897,98.717,98.652,9.1343]
[1770148370703,9.1295,98.705,98.642,9.1352]
[1770148370903,75.1322898,98.704,98.636,68.51941391]
[1770148371103,75.1322898,98.697,98.61,74.72772445]
[1770148371303,75.1322898,98.679,98.61,74.72772445]
[1770148371905,9.1329,98.668,98.613,9.1379]
[1770148373702,75.1322898,98.679,98.622,9.1371]
[1770148373901,75.1322898,98.679,98.61,74.72772445]
[1770148374508,79.88876221,98.665,98.603,9.1389]
[1770148374709,70.75556221,98.665,98.589,69.04325014]
[1770148374908,9.1342,98.655,98.599,9.1392]
[1770148376208,70.75556221,98.665,98.61,9.1381]
[1770148376705,70.75556221,98.688,98.609,69.04325014]
[1770148376912,79.88746221,98.679,98.62,9.1373]
[1770148378513,70.75556221,98.668,98.61,9.1382]
[1770148378713,70.75556221,98.668,98.589,69.04325014]
[1770148379104,70.75556221,98.652,98.567,69.04325014]
[1770148379305,70.75556221,98.616,98.523,69.04325014]
[1770148379606,8.5181582,98.6,98.531,9.1455]
[1770148380004,9.1422,98.568,98.502,69.04325014]
[1770148380206,9.1422,98.568,98.46,8.5181582]
[1770148380207,70.75556221,98.559,98.474,69.04325014]
[1770148380415,70.75556221,98.55,98.474,69.04325014]
[1770148380605,9.1453,98.534,98.474,69.04325014]
[1770148380814,70.75556221,98.53,98.447,69.04325014]
[1770148381215,70.75556221,98.522,98.447,69.04325014]
[1770148381715,70.75556221,98.522,98.458,9.1523]
[1770148381915,70.75556221,98.522,98.45,142.3819]
[1770148381916,70.75556221,98.544,98.469,69.04325014]
[1770148382312,70.75556221,98.542,98.469,78.19455014]
[1770148382721,70.75556221,98.542,98.469,69.04325014]
[1770148382923,70.75556221,98.539,98.447,69.04325014]
[1770148383120,70.75556221,98.528,98.447,69.04325014]
[1770148383319,142.2554,98.538,98.447,69.04325014]
[1770148383320,70.75556221,98.519,98.447,69.04325014]
[1770148383722,70.75556221,98.499,98.417,69.04325014]
[1770148384019,70.75556221,98.479,98.395,69.04325014]
[1770148384220,70.75556221,98.479,98.406,78.20035014]
[1770148384723,142.3146,98.497,98.357,69.04325014]
[1770148384724,142.373,98.457,98.357,69.04325014]
[1770148384920,70.75556221,98.447,98.364,69.04325014]
[1770148385120,70.75556221,98.468,98.378,69.04325014]
[1770148385328,70.75556221,98.468,98.385,69.04325014]
[1770148385527,70.75556221,98.466,98.385,69.04325014]
[1770148385721,79.90786221,98.459,98.385,69.04325014]
[1770148386023,404.86,98.475,98.391,69.04325014]
[1770148386223,404.86,98.475,98.395,69.04325014]
[1770148386426,70.75556221,98.48,98.409,69.04325014]
[1770148386926,70.75556221,98.48,98.413,9.1564]
[1770148387126,70.75556221,98.48,98.41,8.58456899]
[1770148387431,70.75556221,98.48,98.409,69.04325014]
[1770148388129,70.75556221,98.499,98.418,142.4271]
[1770148388332,70.75556221,98.499,98.43,8.58456899]
[1770148388834,70.75556221,98.499,98.44,8.58456899]
[1770148389732,70.75556221,98.499,98.422,142.4221]
[1770148389733,70.75556221,98.558,98.46,77.62781913]
[1770148389928,70.75556221,98.558,98.483,69.04325014]
[1770148390528,70.75556221,98.558,98.5,8.58456899]
[1770148390732,70.75556221,98.58,98.501,142.3069]
[1770148391130,70.75556221,98.58,98.514,9.1471]
[1770148391828,70.75556221,98.678,98.571,69.04325014]